bitfinex/quotes_ETHUSD_20240719
["timestamp","ask_amount","ask_price","bid_price","bid_amount"]
[1721410672834,3.10698444,3503.5,3503.4,0.142]
[1721410673049,4.01584991,3503.5,3503.4,0.142]
[1721410674108,3.29772396,3503.5,3503.4,0.142]
[1721410674389,0.29772396,3503.5,3503.4,0.142]
[1721410674688,3.29772396,3503.5,3503.4,0.142]
[1721410675578,0.29772396,3503.5,3503.4,0.142]
[1721410675874,2.08916838,3503.5,3503.4,0.142]
[1721410676033,0.9766408,3503.5,3503.4,0.142]
[1721410676972,0.29772396,3503.5,3503.4,0.142]
[1721410677273,1.79144442,3503.8,3503.4,0.18304806]
[1721410678286,3.0,3504.0,3503.4,0.18304806]
[1721410678488,1.79098746,3503.8,3503.4,0.18304806]
[1721410678636,0.29772221,3503.8,3503.4,0.18304806]
[1721410678980,2.76758064,3503.8,3503.4,0.142]
[1721410679180,3.0,3503.7,3503.4,0.142]
[1721410679386,3.0,3503.7,3503.5,0.04103223]
[1721410679688,1.79098746,3503.6,3503.5,0.04103223]
[1721410679872,4.79098746,3503.7,3503.5,0.04103223]
[1721410680044,5.57669406,3503.7,3503.5,0.04103223]
[1721410680510,3.7857066,3503.7,3503.5,0.04103223]
[1721410680813,5.57669406,3503.7,3503.5,0.04103223]
[1721410680975,3.7857066,3503.7,3503.5,0.04103223]
[1721410683001,3.0,3503.6,3503.5,0.04103223]
[1721410683202,3.29772221,3503.8,3503.5,0.04103223]
[1721410683406,0.29772221,3503.8,3503.5,0.04103223]
[1721410683596,3.0,3503.7,3503.5,0.04103223]
[1721410683797,0.43972221,3503.8,3503.5,0.04103223]
[1721410684129,0.29772221,3503.8,3503.5,0.04103223]
[1721410686784,0.142,3504.2,3503.5,0.04103223]
[1721410686980,0.142,3504.2,3503.6,2.4107]
[1721410687199,0.142,3504.2,3503.7,0.31437322]
[1721410687420,2.3876,3505.0,3503.7,0.31437322]
[1721410687421,1.79139747,3504.7,3503.7,0.31437322]
[1721410687616,9.17,3505.1,3503.7,0.35537055]
[1721410687617,0.29750199,3504.9,3503.7,0.35537055]
[1721410687888,1.79135018,3504.6,3503.7,0.35537055]
[1721410688101,2.38741053,3504.9,3503.7,0.35537055]
[1721410688102,1.79135018,3504.7,3503.8,0.55]
[1721410688299,1.79135018,3504.7,3503.9,0.33160705]
[1721410688522,0.29750199,3504.9,3503.9,0.37241147]
[1721410688523,1.79135018,3504.8,3503.9,0.37241147]
[1721410688720,2.08885217,3504.9,3504.0,0.55]
[1721410688927,2.08885217,3504.9,3504.1,0.04076788]
[1721410688928,1.79135018,3504.8,3504.1,0.04076788]
[1721410689128,2.08885217,3504.9,3504.1,0.04076788]
[1721410689326,0.29750199,3504.9,3504.1,0.04076788]
[1721410689509,0.29750199,3504.9,3504.2,2.4543]
[1721410689713,0.29750199,3504.9,3504.3,0.30450679]
[1721410689951,1.79135018,3505.2,3504.3,0.34520522]
[1721410690121,1.79191133,3505.2,3504.3,0.34520522]
[1721410690441,1.79233143,3505.2,3504.3,0.34520522]
[1721410690738,1.79233143,3505.3,3504.4,0.55]
[1721410690939,1.79233143,3505.4,3504.5,0.37531786]
[1721410691161,1.79233143,3505.5,3504.6,2.94246069]
[1721410691356,1.79233143,3505.6,3504.6,2.92570384]
[1721410691704,1.79233143,3505.5,3504.6,2.92570384]
[1721410691928,1.79233143,3505.6,3504.7,0.32606544]
[1721410692134,1.79233143,3505.6,3504.8,0.04023442]
[1721410693200,4.79233143,3505.7,3504.8,0.04023442]
[1721410693444,3.0,3505.7,3504.8,0.59023442]
[1721410693739,1.79057785,3505.9,3504.9,2.3904]
[1721410693945,4.9053401,3506.6,3505.0,0.88066999]
[1721410693946,1.79057785,3506.0,3505.0,0.88066999]
[1721410694099,1.79057785,3505.9,3505.0,0.92086953]
[1721410694305,1.79057785,3506.0,3505.0,0.92086953]
[1721410694533,1.79057785,3506.0,3505.0,0.88066999]
[1721410694740,1.7,3506.5,3505.0,0.88066999]
[1721410694741,1.79057785,3506.1,3505.0,0.88066999]
[1721410694920,1.79057785,3506.1,3505.1,0.3672891]
[1721410695125,2.08796016,3506.1,3505.2,0.55]
[1721410695461,1.7,3505.9,3505.2,0.04016467]
[1721410695602,3.49057785,3505.9,3505.2,0.04016467]
[1721410695807,3.0,3505.8,3504.9,2.3904]
[1721410696039,0.64905779,3505.7,3504.9,2.3904]
[1721410696946,1.7,3505.5,3505.0,0.03955558]
[1721410697113,1.7,3505.5,3504.4,2.3051]
[1721410697114,1.78873038,3505.4,3504.4,2.3051]
[1721410697451,1.78873038,3505.3,3504.5,0.03964278]
[1721410697759,3.0,3505.3,3504.5,0.03964278]
[1721410698256,3.0,3505.4,3504.5,0.03964278]
[1721410698420,0.64887304,3505.3,3504.5,0.03964278]
[1721410700592,3.48826654,3505.6,3504.5,0.03964278]
[1721410700741,3.0,3505.5,3504.5,0.03964278]
[1721410701176,4.78826654,3505.5,3504.5,0.03964278]
[1721410701681,1.7,3505.2,3504.5,0.03964278]
[1721410701874,2.37605319,3505.1,3504.5,0.03964278]
[1721410702076,1.7,3504.7,3503.7,2.2913]
[1721410702441,4.7,3504.7,3503.8,0.03728502]
[1721410702868,4.7,3504.7,3503.7,2.2913]
[1721410703260,1.7,3504.7,3503.8,0.03745777]
[1721410703583,0.64885225,3504.6,3503.7,2.2913]
[1721410704181,0.64885225,3504.6,3503.8,0.03745777]
[1721410704640,0.64885225,3504.6,3503.7,2.2913]
[1721410704841,3.64885225,3504.6,3503.7,2.2913]
[1721410705067,5.43737475,3504.6,3503.8,0.03743637]
[1721410705289,0.71373748,3504.5,3503.8,0.03743637]
[1721410705454,1.01121374,3504.5,3503.4,0.142]
[1721410706142,1.01121374,3504.5,3503.5,0.03748873]
[1721410706477,1.78877866,3504.4,3503.5,0.03748873]
[1721410706666,0.80802924,3504.3,3503.5,0.03748873]
[1721410708948,3.80802924,3504.3,3503.5,0.03748873]
[1721410709589,0.80802924,3504.3,3503.5,0.03748873]
[1721410710300,3.0,3504.4,3503.5,0.03748873]
[1721410710496,2.0861778,3504.5,3503.5,0.03748873]
[1721410710866,0.29747626,3504.5,3503.5,0.03748873]
[1721410711475,2.08633444,3504.5,3503.5,0.03748873]
[1721410711852,2.08633444,3504.5,3503.6,2.3754]
[1721410712191,0.29747626,3504.5,3503.7,0.25548887]
[1721410712403,0.29747626,3504.5,3503.7,0.0375188]
[1721410713777,0.29747626,3504.5,3503.7,3.3805188]
[1721410713986,1.78888712,3505.3,3503.8,2.2722]
[1721410714148,1.78888712,3505.4,3503.9,1.11527188]
[1721410714370,1.78888712,3505.4,3504.0,2.3191]
[1721410714548,2.08629056,3505.4,3504.1,0.03742103]
[1721410714816,0.29740344,3505.4,3504.1,0.03742103]
[1721410714956,2.08629056,3505.4,3504.1,0.03742103]
[1721410715156,1.78888712,3505.3,3504.2,0.34717929]
[1721410715499,1.78888712,3505.3,3504.3,0.0373483]
[1721410715652,0.29740344,3505.4,3504.3,0.0373483]
[1721410715862,5.08619853,3505.4,3504.3,0.0373483]
[1721410716161,6.78619853,3505.4,3504.0,2.3191]
[1721410716359,1.78879509,3505.2,3504.0,2.3191]
[1721410716557,4.78879509,3505.2,3504.1,0.03738319]
[1721410716786,4.78895865,3505.2,3504.0,2.3191]
[1721410717152,4.78895865,3505.2,3504.1,0.03727459]
[1721410717353,4.78895865,3505.2,3504.0,2.3191]
[1721410717598,3.0,3505.2,3504.1,0.23191]
[1721410718214,4.78895865,3505.2,3504.1,0.23191]
[1721410718410,3.0,3505.2,3504.1,0.23191]
[1721410719306,1.78938664,3505.3,3504.1,0.23191]
[1721410719507,2.20682742,3505.3,3504.1,0.23191]
[1721410719808,1.78938664,3505.2,3504.1,0.23191]
[1721410720011,4.78938664,3505.2,3504.0,2.3191]
[1721410720306,1.78938664,3505.1,3504.2,0.03725714]
[1721410720525,1.78938664,3505.1,3504.1,0.58727459]
[1721410720670,1.78938664,3505.1,3504.3,0.0372397]
[1721410720871,1.78938664,3505.1,3504.0,2.3191]
[1721410721101,1.78938664,3505.1,3504.4,0.03722225]
[1721410721102,0.52068274,3505.0,3504.4,0.03722225]
[1721410721414,4.01006938,3505.0,3504.0,2.3191]
[1721410721612,4.78938664,3504.9,3504.0,2.3191]
[1721410721918,1.78938664,3504.9,3504.1,0.03727459]
[1721410722129,1.78938664,3504.8,3504.1,0.03727459]
[1721410722425,0.70100694,3504.7,3504.0,2.3191]
[1721410722802,0.70100694,3504.7,3504.1,0.03727459]
[1721410723312,0.70100694,3504.7,3504.0,2.3191]
[1721410723701,4.79097675,3504.9,3504.1,0.03727459]
[1721410723890,1.79097675,3505.0,3504.1,0.03727459]
[1721410724089,3.0,3505.1,3504.1,0.03727459]
[1721410724090,1.79097675,3505.1,3504.1,0.55]
[1721410724326,1.79097675,3505.1,3504.2,0.03725714]
[1721410724521,1.79097675,3505.1,3504.3,2.4554]
[1721410724727,1.79097675,3505.1,3504.4,0.35926571]
[1721410724939,1.79097675,3505.1,3504.4,0.39648961]
[1721410725235,1.79097675,3505.0,3504.4,0.0372239]
[1721410725435,1.79169446,3505.0,3504.4,0.0372239]
[1721410725619,1.79169446,3504.9,3504.4,0.0372239]
[1721410725819,3.49169446,3504.7,3503.9,2.4554]
[1721410725997,1.79169446,3504.5,3503.9,2.4554]
[1721410726196,2.64989493,3504.5,3503.9,2.4554]
[1721410726397,1.79169446,3504.5,3503.9,2.4554]
[1721410726629,4.79169446,3504.6,3503.9,2.4554]
[1721410726936,1.79169446,3504.7,3503.9,2.4554]
[1721410727234,1.79169446,3504.6,3503.9,2.4554]
[1721410728336,1.79169446,3504.5,3503.9,2.4554]
[1721410728629,1.79275089,3504.6,3503.9,2.4554]
[1721410729199,1.79275089,3504.6,3503.9,2.70094]
[1721410729607,1.79275089,3504.6,3504.0,0.03732493]
[1721410729817,1.79275089,3504.7,3504.0,0.03732493]
[1721410730221,1.79275089,3504.5,3504.0,0.03732493]
[1721410731045,1.79275089,3504.4,3503.9,2.4554]
[1721410731231,1.79275089,3504.3,3504.1,0.03729926]
[1721410731436,1.79275089,3504.4,3504.0,0.0373167]
[1721410731643,1.79275089,3504.6,3504.2,0.03728181]
[1721410731815,1.79275089,3504.5,3504.1,0.03731077]
[1721410732009,1.79275089,3504.5,3503.9,2.4554]
[1721410732338,1.79275089,3504.4,3503.9,2.4554]
[1721410732639,1.79275089,3504.4,3504.0,0.03734632]
[1721410733204,1.79275089,3504.4,3504.0,0.28662095]
[1721410733410,4.79275089,3504.6,3504.0,0.28662095]
[1721410733609,1.79275089,3504.6,3504.0,0.28662095]
[1721410733805,1.79275089,3504.7,3504.0,0.28662095]
[1721410734414,1.79275089,3504.6,3504.0,0.28662095]
[1721410734608,1.79275089,3504.6,3504.1,0.2742021]
[1721410734830,1.79275089,3504.7,3504.1,0.2742021]
[1721410735024,3.0,3504.9,3503.9,2.4554]
[1721410735245,1.7933467,3504.7,3503.9,2.4554]
[1721410735414,3.0,3504.9,3504.0,0.03730683]
[1721410735755,1.79338124,3504.6,3504.0,0.03730683]
[1721410736311,1.79338124,3504.5,3504.0,0.03730683]
[1721410738782,1.79338124,3504.4,3504.0,0.03730683]
[1721410738952,1.79338124,3504.4,3503.9,2.4554]
[1721410739342,1.79338124,3504.3,3503.5,2.4612]
[1721410739683,1.79338124,3504.3,3503.6,0.03741448]
[1721410740878,0.98581596,3504.5,3503.6,0.03741448]
[1721410741092,1.79468603,3504.3,3503.6,0.03741448]
[1721410742442,1.79468603,3504.2,3503.6,0.03741448]
[1721410743752,0.29725002,3504.5,3503.6,0.03741448]
[1721410743956,1.79592882,3504.2,3503.6,0.03741448]
[1721410744386,1.79601558,3504.3,3503.6,0.03741448]
[1721410744596,1.79601558,3504.4,3503.7,0.26406145]
[1721410744893,1.79601558,3504.4,3503.8,0.55]
[1721410745040,1.79601558,3504.4,3503.8,0.58740097]
[1721410746258,1.79601558,3504.3,3503.8,0.91866721]
[1721410746587,1.79601558,3504.4,3503.8,0.91866721]
[1721410746770,1.79601558,3504.4,3503.8,0.58740097]
[1721410746961,1.79633383,3504.4,3503.8,0.03740097]
[1721410747162,1.79633383,3504.3,3503.8,0.03740097]
[1721410747463,1.79633383,3504.3,3503.9,0.03736049]
[1721410747787,1.79633383,3504.3,3504.0,0.03734304]
[1721410748178,1.79633383,3504.3,3503.6,0.55]
[1721410748353,1.79633383,3504.3,3504.1,0.03732559]
[1721410748593,1.79633383,3504.3,3503.5,2.4612]
[1721410748594,1.79633383,3504.2,3503.5,2.4612]
[1721410748764,1.79633383,3504.1,3503.5,2.4612]
[1721410749583,1.79633383,3504.0,3503.5,2.4612]
[1721410750164,1.79668377,3504.0,3503.5,2.4612]
[1721410750358,1.79668377,3504.1,3503.5,2.4612]
[1721410751491,2.18596525,3504.1,3503.5,2.4612]
[1721410751649,2.18596525,3504.1,3503.4,0.142]
[1721410751650,1.79668377,3503.6,3503.4,0.142]
[1721410751992,1.7,3503.5,3503.4,0.142]
[1721410752193,2.41760548,3503.5,3503.4,0.142]
[1721410752564,7.89366031,3503.5,3503.4,0.142]
[1721410752768,5.41760548,3503.5,3503.4,0.142]
[1721410754450,7.89051827,3503.5,3503.4,0.142]
[1721410754692,5.41760548,3503.5,3503.4,0.142]
[1721410754905,11.09615032,3503.5,3503.4,0.142]
[1721410755117,11.09615032,3503.5,3501.9,2.2535]
[1721410755118,2.85445,3503.3,3501.9,2.2535]
[1721410755266,7.63643203,3503.3,3501.8,7.39]
[1721410755602,7.66851003,3503.3,3501.8,7.39]
[1721410756079,4.81406003,3503.3,3501.8,7.39]
[1721410756757,7.28361304,3503.3,3501.8,7.39]
[1721410757069,4.81406003,3503.3,3501.8,7.39]
[1721410757667,1.81406003,3503.3,3501.8,7.39]
[1721410759292,1.81406003,3503.3,3501.5,2.2535]
[1721410759886,1.81406003,3503.3,3502.3,2.4619]
[1721410759887,3.90170019,3503.3,3502.3,2.4619]
[1721410760220,6.90170019,3503.3,3501.7,2.4334]
[1721410760568,4.81406003,3503.3,3501.7,2.4334]
[1721410761568,8.17172487,3503.3,3501.7,2.4334]
[1721410761768,10.25936503,3503.3,3501.7,2.4334]
[1721410761967,8.17172487,3503.3,3501.7,2.4334]
[1721410762198,13.41049079,3503.3,3501.7,2.4334]
[1721410762413,1.7,3502.4,3501.3,9.7731]
[1721410762718,1.7,3502.4,3501.4,0.03410318]
[1721410762719,0.17,3502.3,3501.4,0.03410318]
[1721410764288,3.0,3502.7,3501.4,0.03410318]
[1721410764474,3.0,3502.8,3501.5,2.3451]
[1721410764835,0.29771184,3503.3,3501.8,2.3451]
[1721410764977,0.29771184,3503.3,3501.9,1.11881]
[1721410765496,0.29771184,3503.3,3502.0,0.03266133]
[1721410766478,0.29771184,3503.3,3502.1,2.4255]
[1721410766802,0.29771184,3503.3,3502.3,2.4255]
[1721410767031,0.29771184,3503.3,3502.2,0.05709829]
[1721410767032,0.29771184,3503.3,3502.5,2.4255]
[1721410767230,1.7,3504.4,3502.6,0.29755]
[1721410767522,0.29695958,3504.0,3502.7,2.4255]
[1721410767896,0.29695958,3504.0,3502.8,0.03252163]
[1721410768100,1.99695958,3504.0,3502.8,0.03252163]
[1721410768293,1.99695958,3504.0,3502.7,2.4255]
[1721410768695,1.99695958,3504.0,3502.8,0.03247183]
[1721410768924,0.49969596,3503.9,3502.7,2.4255]
[1721410769225,0.49969596,3503.9,3502.9,0.03245272]
[1721410769389,0.49969596,3503.9,3502.8,0.03247018]
[1721410769784,0.49969596,3503.9,3502.7,2.4255]
[1721410770589,0.49969596,3503.9,3501.9,7.95881]
[1721410770590,1.7,3503.3,3502.0,2.3335]
[1721410770789,1.7,3502.9,3502.0,2.3335]
[1721410770984,1.7,3502.9,3502.1,0.03259242]
[1721410771185,1.7,3502.9,3502.0,2.3335]
[1721410771393,0.17,3503.2,3502.1,0.03260889]
[1721410771601,3.0,3503.6,3502.1,0.03260889]
[1721410771800,3.0,3503.6,3502.2,2.4465]
[1721410772001,3.49969596,3503.9,3501.9,2.4465]
[1721410772225,5.28662947,3503.9,3502.4,2.4465]
[1721410772403,1.78693351,3503.8,3502.4,2.4465]
[1721410772732,1.32446744,3503.7,3502.4,2.4465]
[1721410773106,6.11140095,3503.7,3502.4,2.4465]
[1721410773420,1.32446744,3503.7,3502.4,2.4465]
[1721410773615,3.0,3503.6,3502.4,2.4465]
[1721410773814,3.0,3503.6,3501.3,7.39]
[1721410773815,1.7,3503.1,3501.8,2.4465]
[1721410774017,0.17,3503.0,3501.9,0.03268664]
[1721410774214,0.17,3503.0,3501.8,2.4465]
[1721410775556,1.7,3502.7,3501.4,2.4465]
[1721410775847,1.7,3502.7,3501.5,0.58281253]
[1721410776348,1.7,3502.3,3501.5,0.03281253]
[1721410776712,1.7,3502.3,3501.1,2.355]
[1721410776950,0.47,3502.2,3501.6,0.03284613]
[1721410777246,0.47,3502.2,3501.1,2.355]
[1721410777544,0.47,3502.2,3501.2,0.03291603]
[1721410777545,1.7,3501.9,3501.2,0.03291603]
[1721410778015,1.7,3501.9,3500.8,0.0513132]
[1721410778213,0.49968305,3501.8,3500.9,0.03319751]
[1721410780010,3.29683045,3502.1,3501.0,2.2541]
[1721410780208,3.29683045,3502.1,3501.1,0.03317409]
[1721410780608,3.29683045,3502.1,3500.8,0.0513132]
[1721410780609,1.7,3501.9,3500.8,0.0513132]
[1721410780839,1.7,3501.9,3500.9,0.03320905]
[1721410781810,1.7,3501.5,3500.9,0.03320905]
[1721410782022,0.17,3501.4,3500.9,0.03320905]
[1721410783524,0.17,3501.4,3500.9,0.02870818]
[1721410786148,0.17,3501.4,3500.8,0.0513132]
[1721410786352,1.7,3501.1,3500.8,0.0513132]
[1721410786554,1.7,3501.1,3500.9,0.03202968]
[1721410786718,0.17,3501.0,3500.9,0.03202968]
[1721410786921,0.17,3501.0,3500.8,0.0513132]
[1721410787138,0.17,3501.0,3500.9,0.03202968]
[1721410787326,0.17,3501.0,3500.8,0.0513132]
[1721410787956,0.4672171,3501.0,3500.8,0.0513132]
[1721410788158,0.21672171,3500.9,3500.8,0.0513132]
[1721410790448,0.4672171,3501.0,3500.8,0.0513132]
[1721410792157,0.2972171,3501.0,3500.8,0.0513132]
[1721410796635,0.2972171,3501.0,3500.9,0.03217311]
[1721410797526,10.32,3502.2,3501.0,2.4717]
[1721410797721,0.29663553,3502.0,3501.0,2.4717]
[1721410797959,0.29663553,3502.0,3501.1,0.58224367]
[1721410798249,2.85,3502.2,3501.2,0.36039437]
[1721410798424,2.85,3502.2,3501.3,0.55]
[1721410798726,2.85,3502.2,3501.4,0.03215662]
[1721410798727,3.14655604,3502.2,3501.4,0.03215662]
[1721410799163,3.14655604,3502.2,3501.2,0.36039437]
[1721410799647,3.14655604,3502.2,3501.3,0.03205541]
[1721410799819,3.14655604,3502.2,3501.0,2.4717]
[1721410799820,3.0,3502.1,3501.0,2.4717]
[1721410800360,3.0,3502.1,3501.1,0.03208871]
[1721410800751,0.29655604,3502.2,3501.1,0.03208871]
[1721410801549,1.7,3501.7,3501.1,0.03208871]
[1721410801753,0.17,3501.6,3501.1,0.03208871]
[1721410802071,0.17,3501.6,3501.2,0.03209925]
[1721410802269,1.7,3502.1,3500.8,0.0513132]
[1721410802724,0.29655604,3502.2,3500.8,0.0513132]
[1721410803091,0.29655604,3502.2,3500.9,2.34563296]
[1721410803287,0.29655604,3502.2,3500.9,2.89563296]
[1721410803580,0.29655604,3502.2,3501.0,2.3136]
[1721410803723,0.29655604,3502.2,3501.2,2.3136]
[1721410804075,2.3986,3503.5,3501.4,2.3136]
[1721410804076,1.7,3503.2,3501.4,2.3136]
[1721410804239,1.7,3503.2,3501.5,0.03183185]
[1721410804580,1.7,3503.2,3501.5,0.55]
[1721410804581,0.29672017,3503.1,3501.5,0.55]
[1721410804975,0.29672017,3503.1,3501.6,0.03181437]
[1721410805270,0.37853781,3503.0,3501.6,0.55]
[1721410805778,0.37853781,3503.0,3501.5,0.55]
[1721410806480,3.37853781,3503.0,3501.6,0.03156844]
[1721410806785,0.37853781,3503.0,3501.6,0.03156844]
[1721410806998,1.7,3502.7,3501.6,0.03156844]
[1721410807206,1.7,3502.7,3501.4,2.3136]
[1721410807207,0.41462,3502.6,3501.4,2.3136]
[1721410807485,1.7,3502.1,3501.4,2.3136]
[1721410808371,1.78844515,3502.5,3501.4,2.3136]
[1721410808372,3.0,3502.4,3501.4,2.3136]
[1721410809064,1.7,3502.5,3501.4,2.3136]
[1721410809065,6.48844515,3502.5,3501.4,2.3136]
[1721410809264,1.7,3502.1,3500.6,2.2638]
[1721410809463,0.17,3502.0,3500.9,2.35944974]
[1721410810358,3.0,3502.3,3500.9,2.35944974]
[1721410810555,3.0,3502.3,3501.0,0.55]
[1721410810556,1.7,3502.2,3501.0,0.55]
[1721410811009,1.7,3502.2,3501.1,0.03067465]
[1721410811010,3.48891713,3502.2,3501.1,0.03067465]
[1721410811290,3.0,3502.1,3501.1,0.03067465]
[1721410811497,3.0,3502.1,3500.9,2.3287]
[1721410811498,4.78891713,3502.1,3500.9,2.3287]
[1721410811658,0.64889171,3502.0,3501.0,0.03069378]
[1721410812155,1.7,3501.8,3501.0,0.03069378]
[1721410812321,6.48891713,3501.8,3501.0,0.03069378]
[1721410812467,1.7,3501.2,3501.0,0.03069378]
[1721410812663,1.7,3501.2,3500.2,0.1512355]
[1721410812881,0.94500024,3501.1,3500.2,0.1512355]
[1721410813315,5.90492707,3501.0,3500.2,0.1512355]
[1721410813543,3.0,3500.9,3500.2,0.1512355]
[1721410813695,4.7,3500.9,3500.2,0.1512355]
[1721410815195,4.99731303,3500.9,3500.2,0.1512355]
[1721410815391,4.38672233,3500.9,3500.2,0.1512355]
[1721410815627,1.38672233,3500.9,3500.2,0.1512355]
[1721410815808,4.38672233,3500.9,3500.2,0.1512355]
[1721410816305,1.38672233,3500.9,3500.2,0.1512355]
[1721410816890,4.87772823,3500.9,3500.2,0.1512355]
[1721410817092,7.87772823,3500.9,3500.2,0.1512355]
[1721410818131,6.08672233,3500.9,3500.2,0.1512355]
[1721410818291,8.94312233,3500.9,3500.2,0.1512355]
[1721410818494,6.08672233,3500.9,3500.2,0.1512355]
[1721410820339,1.7,3500.3,3500.2,0.1512355]
[1721410820636,1.79271374,3500.4,3500.2,0.1512355]
[1721410821542,1.79271374,3500.5,3500.2,0.1512355]
[1721410821711,4.79271374,3500.6,3500.2,0.1512355]
[1721410821912,2.56556686,3500.5,3500.2,0.1512355]
[1721410822212,1.7,3500.3,3500.2,0.1512355]
[1721410822612,4.7,3500.3,3500.2,0.1512355]
[1721410823143,1.7,3500.3,3500.2,0.1512355]
[1721410823298,1.7921859,3500.3,3500.2,0.1512355]
[1721410823513,3.0,3500.4,3500.2,0.1512355]
[1721410823814,1.15261243,3500.3,3500.2,0.1512355]
[1721410825062,5.70950243,3500.3,3500.2,0.1512355]
[1721410825212,7.64479833,3500.3,3500.2,0.1512355]
[1721410825413,6.14807309,3500.3,3500.2,0.1512355]
[1721410826615,11.09516439,3500.3,3500.2,0.1512355]
[1721410828008,8.23827439,3500.3,3500.2,0.1512355]
[1721410828215,6.14807309,3500.3,3500.2,0.1512355]
[1721410828755,11.093485,3500.3,3500.2,0.1512355]
[1721410830070,9.00496309,3500.3,3500.2,0.1512355]
[1721410830447,8.59283529,3500.3,3500.2,0.1512355]
[1721410831062,13.5382472,3500.3,3500.2,0.1512355]
[1721410831260,11.44972529,3500.3,3500.2,0.1512355]
[1721410831879,11.48634716,3500.3,3500.2,0.1512355]
[1721410832398,11.48634716,3500.3,3499.0,1.0]
[1721410832399,1.7,3499.4,3499.0,1.0]
[1721410832688,0.03665437,3499.3,3499.0,1.0]
[1721410834180,0.03665437,3499.3,3499.1,2.3616]
[1721410834547,0.03665437,3499.3,3499.2,0.05677002]
[1721410834994,0.03665437,3499.3,3499.2,0.39860702]
[1721410835351,0.29546066,3500.3,3499.3,2.3401]
[1721410835793,0.29546066,3500.3,3499.4,0.0568335]
[1721410836017,1.7,3499.9,3499.4,0.0568335]
[1721410836162,0.03662187,3499.8,3499.4,0.0568335]
[1721410836360,0.17366219,3499.7,3499.4,0.0568335]
[1721410836669,0.03662187,3499.6,3499.4,0.0568335]
[1721410837598,0.03662187,3499.6,3499.0,3.3319]
[1721410838252,0.03662187,3499.6,3499.1,0.05678834]
[1721410842149,0.29488556,3500.1,3499.2,2.8242]
[1721410842345,7.47,3501.0,3499.2,2.8242]
[1721410842688,0.29478755,3500.6,3499.4,2.2742]
[1721410842890,0.29478755,3500.6,3499.5,0.60651907]
[1721410845490,0.29478755,3500.6,3499.5,0.05651907]
[1721410846012,1.7,3500.3,3499.5,0.05651907]
[1721410846582,2.3977,3500.5,3499.0,3.4058]
[1721410846583,1.7,3499.9,3499.0,3.4058]
[1721410846782,0.17,3499.8,3499.0,3.4058]
[1721410847012,0.17,3499.8,3499.1,0.05635107]
[1721410847691,1.7,3500.3,3499.1,0.05635107]
[1721410848217,1.7,3500.3,3499.0,3.4058]
[1721410848882,3.29478755,3500.6,3499.0,3.4058]
[1721410849420,3.29478755,3500.6,3499.0,3.40491971]
[1721410849720,1.7,3500.3,3499.1,0.34049197]
[1721410849920,1.7,3500.3,3499.2,0.05458577]
[1721410850223,1.7,3500.3,3499.1,0.34049197]
[1721410850926,1.7,3500.3,3499.2,0.05450973]
[1721410851223,1.7,3500.3,3499.1,0.34049197]
[1721410851521,0.77629675,3500.2,3499.0,3.40491971]
[1721410851884,1.7,3499.9,3499.0,3.40491971]
[1721410852782,0.29440935,3499.8,3499.0,3.40491971]
[1721410857219,2.08985794,3499.8,3499.0,3.40491971]
[1721410857518,0.29440935,3499.8,3499.0,3.40491971]
[1721410857728,0.29440935,3499.8,3499.0,3.74541168]
[1721410857877,0.29440935,3499.8,3499.1,0.05446273]
[1721410858221,1.79544859,3499.7,3499.1,0.05446273]
[1721410859081,2.08985794,3499.8,3499.1,0.05446273]
[1721410859285,2.08985794,3499.8,3499.0,3.40491971]
[1721410859492,2.08985794,3499.8,3499.1,0.55]
[1721410859692,2.08985794,3499.8,3499.2,0.0543813]
[1721410860121,1.79544859,3499.7,3499.2,0.0543813]
[1721410860415,1.79701682,3499.7,3499.0,3.40491971]
[1721410860608,2.09142617,3499.8,3499.0,3.40491971]
[1721410860808,1.79701682,3499.7,3499.1,0.05439963]
[1721410861014,1.79701682,3499.7,3499.0,3.40491971]
[1721410861388,1.79701682,3499.6,3499.0,3.40491971]
[1721410861883,2.09142617,3499.8,3499.0,3.74541168]
[1721410862080,0.29440935,3499.8,3499.1,0.05436793]
[1721410862324,2.09142617,3499.8,3499.0,3.74541168]
[1721410862515,2.09142617,3499.8,3499.1,0.60436793]
[1721410862680,0.29440935,3499.8,3499.1,0.60436793]
[1721410862899,2.09169102,3499.8,3499.2,0.43497796]
[1721410863238,0.29440935,3499.8,3499.3,0.60427993]
[1721410863537,2.09196296,3499.8,3499.4,2.4909]
[1721410863688,2.09196296,3499.8,3499.5,0.05424326]
[1721410863889,0.29440935,3499.8,3499.5,0.40725538]
[1721410864088,0.29440935,3499.8,3499.5,0.35301212]
[1721410864427,2.09196296,3499.8,3499.5,0.35301212]
[1721410865399,1.79755361,3499.7,3499.4,2.4909]
[1721410865614,1.79755361,3499.6,3499.4,2.4909]
[1721410865928,0.29440935,3499.8,3499.4,2.4909]
[1721410866096,1.79785852,3499.7,3499.0,3.40531971]
[1721410866302,0.29440935,3499.8,3499.1,0.0543166]
[1721410866303,1.79785852,3499.5,3499.1,0.0543166]
[1721410866628,1.79785852,3499.4,3499.0,3.40531971]
[1721410866996,1.79785852,3499.5,3499.0,3.40531971]
[1721410867188,1.79785852,3499.6,3499.1,0.34053197]
[1721410867418,1.79785852,3499.7,3499.2,2.3437]
[1721410867624,1.79785852,3499.7,3499.3,0.55]
[1721410868012,2.09226787,3499.8,3499.4,0.05426159]
[1721410868288,3.0,3500.0,3499.5,0.55]
[1721410868289,1.79785852,3500.0,3499.5,0.55]
[1721410868485,1.79785852,3500.1,3499.6,2.37822493]
[1721410868711,2.0975016,3500.5,3499.6,2.37822493]
[1721410868712,1.79785852,3500.2,3499.7,0.84282249]
[1721410868908,1.79785852,3500.2,3499.8,0.05415391]
[1721410869112,1.797448,3500.3,3499.9,0.55]
[1721410869360,3.39410803,3501.0,3499.9,0.55]
[1721410869361,0.917,3501.0,3499.9,0.55]
[1721410869561,1.79738303,3500.3,3499.9,0.55]
[1721410869718,1.79738303,3500.3,3499.7,0.55]
[1721410870060,1.79738303,3500.3,3499.6,2.324]
[1721410870280,1.79738303,3500.2,3499.8,0.05406498]
[1721410870561,1.79738303,3500.2,3499.6,2.324]
[1721410870723,1.79738303,3500.1,3499.6,2.324]
[1721410870911,1.79738303,3500.1,3499.7,0.05403097]
[1721410870912,1.79738303,3499.8,3499.7,0.05403097]